bitfinex-derivatives/quotes_SOLF0:USTF0_20250516
["timestamp","ask_amount","ask_price","bid_price","bid_amount"]
[1747405064233,5.7807,172.94,172.87,69.2]
[1747405064530,3.7569,172.97,172.9,5.7816]
[1747405064735,3.7569,172.97,172.87,69.2]
[1747405064936,3.7569,172.97,172.84,18.78795361]
[1747405065137,3.7569,172.97,172.88,5.7821]
[1747405065337,5.7812,172.92,172.84,87.98795361]
[1747405065537,69.16,172.93,172.84,87.98795361]
[1747405066537,74.941,172.93,172.84,87.98795361]
[1747405066736,74.941,172.93,172.91,5.7813]
[1747405066737,69.16,172.93,172.91,5.7813]
[1747405068037,138.34,172.95,172.84,87.98795361]
[1747405068645,69.2,172.95,172.85,11.5667]
[1747405068935,69.2,172.99,172.84,87.98795361]
[1747405069133,74.9189,172.99,172.96,5.7795]
[1747405069333,69.14,172.99,172.9,69.2]
[1747405069535,69.2,173.0,172.9,69.2]
[1747405069734,144.1186,173.0,172.97,5.7792]
[1747405069942,69.2,173.0,172.97,5.7792]
[1747405070244,5.7791,172.98,172.9,69.2]
[1747405070940,5.7789,172.99,172.9,69.2]
[1747405071942,5.7789,172.99,172.95,5.7798]
[1747405072441,5.7792,172.98,172.95,5.7798]
[1747405072637,138.32,173.0,172.9,69.2]
[1747405073038,5.78,172.96,172.89,3.7491]
[1747405073237,138.32,173.0,172.89,3.7491]
[1747405073440,5.7803,172.95,172.89,72.9491]
[1747405073738,138.32,173.0,172.89,72.9491]
[1747405073945,138.32,173.0,172.93,5.7805]
[1747405074144,5.78,172.96,172.93,5.7805]
[1747405075247,5.7795,172.97,172.89,72.9491]
[1747405076446,5.7795,172.97,172.94,5.7802]
[1747405077151,138.32,173.0,172.89,72.9491]
[1747405077337,138.26,173.0,172.89,72.9491]
[1747405077648,5.7791,172.98,172.89,72.9491]
[1747405077844,138.26,173.0,172.89,72.9491]
[1747405078942,5.7797,172.97,172.89,72.9491]
[1747405079541,5.7797,172.97,172.94,5.7801]
[1747405079848,138.26,173.0,172.89,72.9491]
[1747405080253,144.0386,173.0,172.97,5.7792]
[1747405080445,138.26,173.0,172.97,5.7792]
[1747405080654,5.7792,172.98,172.89,72.9491]
[1747405080847,138.26,173.0,172.89,72.9491]
[1747405081152,5.7796,172.97,172.94,5.7803]
[1747405081351,138.26,173.0,172.89,3.7491]
[1747405082354,5.7789,172.99,172.96,5.7797]
[1747405082653,138.26,173.0,172.9,69.02]
[1747405082654,69.2,173.0,172.9,69.02]
[1747405083047,74.9784,173.0,172.9,69.02]
[1747405083351,69.2,173.0,172.91,10.49033112]
[1747405083552,69.2,173.0,172.95,5.78]
[1747405083756,69.2,173.0,172.91,10.49033112]
[1747405083955,5.7796,172.97,172.94,5.7801]
[1747405084156,69.2,173.0,172.9,69.02]
[1747405084458,5.7795,172.97,172.94,5.7804]
[1747405084950,5.7791,172.98,172.95,5.7797]
[1747405085154,69.2,173.0,172.91,10.49033112]
[1747405086055,5.7796,172.97,172.94,5.7803]
[1747405086252,69.2,173.0,172.94,5.7803]
[1747405086554,69.2,173.0,172.91,10.49033112]
[1747405086757,69.2,173.0,172.94,5.7802]
[1747405087145,69.2,173.0,172.89,14.23943112]
[1747405087453,5.7803,172.95,172.89,3.7491]
[1747405087851,5.7803,172.95,172.92,5.7809]
[1747405088057,68.98,172.96,172.89,3.7491]
[1747405088253,69.2,173.0,172.96,5.7795]
[1747405088554,143.9585,173.0,172.89,14.23943112]
[1747405088758,143.9585,173.0,172.9,68.96]
[1747405089057,143.9585,173.0,172.97,5.7791]
[1747405089358,5.7788,172.99,172.96,5.7797]
[1747405089553,69.2,173.0,172.9,68.96]
[1747405089952,69.2,173.0,172.98,5.779]
[1747405090358,74.9784,173.0,172.98,5.779]
[1747405090657,74.9784,173.0,172.97,5.7792]
[1747405090954,69.2,173.0,172.98,5.7789]
[1747405091957,74.9785,173.0,172.92,10.49033112]
[1747405092159,69.2,173.0,172.92,10.49033112]
[1747405092460,69.2,173.0,172.95,5.78]
[1747405092664,69.2,173.0,172.89,83.19943112]
[1747405093054,5.7798,172.96,172.93,5.7805]
[1747405093254,69.2,173.0,172.89,83.19943112]
[1747405093450,5.7798,172.96,172.93,5.7805]
[1747405093651,69.2,173.0,172.89,83.19943112]
[1747405093956,5.7795,172.97,172.89,83.19943112]
[1747405094160,69.2,173.0,172.89,83.19943112]
[1747405095264,69.2,173.0,172.97,5.7791]
[1747405095563,69.2,173.0,172.92,10.49033112]
[1747405095765,69.2,173.0,172.98,5.7789]
[1747405095962,69.2,173.0,172.92,10.49033112]
[1747405096354,69.2,173.0,172.96,5.7795]
[1747405096554,69.2,173.0,172.9,10.49033112]
[1747405096858,69.2,173.0,172.93,5.7807]
[1747405097468,5.78,172.96,172.93,5.7807]
[1747405097760,69.2,173.0,172.93,5.7807]
[1747405097964,69.2,173.0,172.92,5.781]
[1747405097965,5.7803,172.95,172.92,5.781]
[1747405098260,5.7803,172.95,172.89,72.7091]
[1747405098465,68.88,172.96,172.89,72.7091]
[1747405098866,68.88,172.96,172.94,5.7803]
[1747405099167,68.88,172.96,172.89,72.7091]
[1747405099567,68.88,172.96,172.95,5.7801]
[1747405099866,5.7788,172.99,172.9,10.49033112]
[1747405100168,5.7788,172.99,172.96,5.7795]
[1747405100667,5.7788,172.99,172.97,5.7793]
[1747405102168,5.7791,172.98,172.96,5.7796]
[1747405102373,138.08,173.0,172.9,10.49033112]
[1747405102670,5.7792,172.98,172.95,5.7798]
[1747405102870,138.08,173.0,172.9,10.49033112]
[1747405103464,69.2,173.0,172.91,1.8548]
[1747405103664,3.9708,173.05,172.96,10.49033112]
[1747405103874,1.8083,173.11,172.99,10.49033112]
[1747405104168,68.84,173.11,173.0,72.747]
[1747405104761,5.7759,173.08,173.02,5.7775]
[1747405104967,5.7759,173.08,173.0,72.747]
[1747405105168,68.84,173.11,173.0,72.747]
[1747405105368,68.84,173.11,173.02,5.7775]
[1747405105876,68.84,173.11,173.01,5.778]
[1747405106069,68.84,173.11,173.0,72.747]
[1747405106269,10.49033112,173.13,173.0,72.747]
[1747405106777,68.8,173.12,173.0,72.747]
[1747405106976,5.7756,173.09,173.05,5.7765]
[1747405107575,68.8,173.11,173.05,5.7765]
[1747405107777,662.22791434,173.14,173.04,5.7769]
[1747405107972,5.7756,173.09,173.02,10.49033112]
[1747405108169,68.8,173.13,173.02,10.49033112]
[1747405108574,5.7764,173.06,173.0,72.747]
[1747405108979,68.8,173.13,173.0,72.747]
[1747405109275,79.29033112,173.13,173.0,72.747]
[1747405109681,1.9117,173.12,173.0,72.747]
[1747405110190,5.7767,173.06,173.0,72.747]
[1747405110484,68.78,173.08,173.0,72.747]
[1747405110681,5.7762,173.07,173.0,72.747]
[1747405110886,68.78,173.08,173.0,72.747]
[1747405111081,68.78,173.08,173.03,5.7772]
[1747405111282,5.7764,173.06,173.03,5.7772]
[1747405111484,68.78,173.08,173.02,5.7777]
[1747405112086,68.78,173.08,173.03,5.7772]
[1747405112287,68.78,173.08,173.0,72.747]
[1747405112789,5.7765,173.06,173.03,5.7774]
[1747405113189,68.78,173.08,173.03,5.7774]
[1747405113488,5.7768,173.05,173.02,5.7775]
[1747405114187,5.7771,173.04,173.02,5.7775]
[1747405114390,5.7771,173.04,173.01,5.7779]
[1747405114586,68.78,173.08,173.0,72.747]
[1747405114587,68.78,173.08,173.0,68.96]
[1747405114996,10.49033112,173.07,173.0,68.96]
[1747405115291,10.49033112,173.07,172.95,68.92]
[1747405115292,10.49033112,173.04,172.95,68.92]
[1747405115489,137.64,173.03,172.91,1.9883]
[1747405115682,139.4458,173.03,172.91,1.9883]
[1747405115882,139.4458,173.03,172.93,5.7807]
[1747405116283,5.7794,172.98,172.91,3.1449711]
[1747405116482,74.4994,172.98,172.91,3.1449711]
[1747405116890,68.72,172.98,172.91,3.1449711]
[1747405117190,68.72,172.98,172.95,5.7798]
[1747405117493,68.72,172.98,172.91,1.9883]
[1747405117681,68.72,172.98,172.9,68.92]
[1747405117880,137.64,172.98,172.9,68.92]
[1747405118791,137.64,172.98,172.93,5.7806]
[1747405118992,5.7797,172.97,172.93,5.7806]
[1747405119188,137.64,172.98,172.91,5.7814]
[1747405119490,5.7804,172.94,172.91,5.7814]
[1747405119693,137.64,172.98,172.9,74.7017]
[1747405119993,5.7801,172.95,172.9,68.92]
[1747405120193,137.64,172.98,172.9,68.92]
[1747405120590,68.7,173.02,172.9,68.92]
[1747405120790,68.7,172.99,172.9,68.92]
[1747405121290,5.7793,172.98,172.9,68.92]
[1747405121482,68.7,172.99,172.95,5.7798]
[1747405121793,74.479,172.99,172.95,5.7798]
[1747405122194,74.479,172.99,172.96,5.7797]
[1747405122395,68.7,172.99,172.9,68.92]
[1747405123387,74.4788,172.99,172.96,5.7797]
[1747405123787,68.7,172.99,172.9,68.92]
[1747405124195,5.7791,172.98,172.95,5.7799]
[1747405124695,74.4788,172.99,172.95,5.7799]
[1747405124892,68.7,172.99,172.95,5.7799]
[1747405125094,68.7,172.99,172.94,5.7803]
[1747405125295,68.7,172.99,172.9,68.92]
[1747405125997,68.7,172.99,172.96,5.7795]
[1747405126186,68.7,173.02,172.92,10.49033112]
[1747405126386,68.66,173.01,172.92,10.49033112]
[1747405126996,5.7786,173.0,172.97,5.7793]
[1747405127199,68.66,173.01,172.92,10.49033112]
[1747405127492,68.66,173.01,172.97,5.7792]
[1747405127798,68.66,173.01,172.92,10.49033112]
[1747405128194,74.4381,173.01,172.92,10.49033112]
[1747405128695,74.4381,173.01,172.97,5.7791]
[1747405129193,5.7786,173.0,172.96,5.7796]
[1747405129599,74.4382,173.01,172.92,10.49033112]
[1747405129895,74.4382,173.01,172.97,5.7792]
[1747405130097,5.7784,173.0,172.97,5.7792]
[1747405130396,68.66,173.01,172.92,10.49033112]
[1747405130697,5.7789,172.99,172.92,10.49033112]
[1747405130898,68.66,173.01,172.96,5.7797]
[1747405131098,68.66,173.01,172.92,10.49033112]
[1747405131400,137.32,173.02,172.92,10.49033112]
[1747405131897,143.098,173.02,172.98,5.7788]
[1747405132297,143.098,173.02,172.92,10.49033112]
[1747405132496,5.7781,173.01,172.99,5.7787]
[1747405132698,137.32,173.02,172.95,68.7]
[1747405132899,137.32,173.02,172.97,5.7793]
[1747405133096,137.32,173.02,172.95,68.7]
[1747405133489,137.32,173.02,172.98,5.779]
[1747405133692,5.7783,173.01,172.98,5.779]
[1747405134304,137.32,173.02,172.95,68.7]
[1747405134507,68.6,173.03,172.95,79.19033112]
[1747405134805,68.6,173.04,173.03,5.7771]
[1747405135808,68.7,173.06,173.04,5.7769]
[1747405136202,74.3563,173.07,173.04,5.7769]
[1747405136403,68.58,173.07,173.05,5.7767]
[1747405136899,68.58,173.07,173.06,5.7764]
[1747405137106,68.58,173.07,173.0,68.7]
[1747405137298,5.7756,173.09,173.0,68.7]
[1747405137500,74.3556,173.09,173.0,68.7]
[1747405137799,74.3356,173.09,173.0,68.7]
[1747405137996,68.7,173.1,173.0,68.7]
[1747405138194,68.56,173.09,173.0,68.7]
[1747405138901,68.56,173.12,173.04,10.49033112]
[1747405139106,68.56,173.12,173.05,68.7]
[1747405139803,5.7742,173.13,173.05,68.7]
[1747405140013,74.3342,173.13,173.05,68.7]
[1747405140305,68.54,173.13,173.05,68.7]
[1747405140506,68.7,173.15,173.05,68.7]
[1747405140698,68.54,173.14,173.06,1.8168]
[1747405140894,499.4,173.18,173.07,10.49033112]
[1747405141100,68.68,173.19,173.07,10.49033112]
[1747405141305,68.52,173.18,173.07,10.49033112]
[1747405143207,68.52,173.18,173.11,5.7745]
[1747405143508,68.52,173.18,173.07,10.49033112]
[1747405143710,5.7733,173.16,173.12,5.7742]
[1747405144013,68.52,173.18,173.07,10.49033112]
[1747405144408,5.774,173.14,173.11,5.7747]
[1747405145112,5.7735,173.15,173.07,10.49033112]
[1747405145409,68.52,173.18,173.07,10.49033112]
[1747405145611,74.2926,173.18,173.14,5.7734]
[1747405145913,68.68,173.23,173.1,79.17033112]
[1747405146107,68.48,173.22,173.11,3.916]
[1747405146299,5.7715,173.21,173.18,5.7721]
[1747405146913,5.7712,173.22,173.19,5.7719]
[1747405147111,68.46,173.22,173.15,68.66]
[1747405147301,5.7724,173.18,173.15,68.66]
[1747405147607,68.46,173.22,173.11,3.916]
[1747405147909,5.7738,173.14,173.1,68.66]
[1747405148109,5.7738,173.14,173.11,5.7746]
[1747405148313,5.7738,173.14,173.1,68.66]
[1747405148605,5.7738,173.14,173.1,74.4348]
[1747405149613,5.7735,173.15,173.1,68.66]
[1747405149910,68.44,173.16,173.1,68.66]
[1747405150311,68.44,173.16,173.11,5.7746]
[1747405151115,5.774,173.14,173.1,74.435]
[1747405151417,68.44,173.16,173.06,70.2368]
[1747405151909,5.7747,173.12,173.08,5.7755]
[1747405152111,68.44,173.16,173.06,68.42]
[1747405152310,5.7755,173.09,173.06,74.1962]
[1747405152708,68.4,173.11,173.07,5.776]
[1747405152913,68.4,173.11,173.06,68.42]
[1747405153313,74.1749,173.11,173.07,5.776]
[1747405153517,68.4,173.11,173.06,68.42]
[1747405154011,68.4,173.11,173.09,5.7752]
[1747405154216,68.38,173.13,173.06,68.42]
[1747405154416,68.38,173.13,173.12,5.7743]
[1747405154613,3.8373,173.22,173.11,10.49033112]
[1747405154816,68.38,173.19,173.16,5.7728]
[1747405155011,68.38,173.19,173.11,78.91033112]
[1747405155512,72.2573,173.22,173.11,78.91033112]
[1747405155717,68.38,173.21,173.11,82.73233112]
[1747405155917,74.1515,173.21,173.17,5.7725]
[1747405156120,68.38,173.21,173.11,82.73233112]
[1747405156316,68.42,173.22,173.11,82.73233112]
[1747405156621,136.78,173.22,173.11,82.73233112]
[1747405157224,5.772,173.2,173.16,5.773]
[1747405157516,136.78,173.22,173.11,82.73233112]
[1747405157718,5.7718,173.2,173.16,5.7728]
[1747405157919,68.34,173.21,173.11,82.73233112]
[1747405158123,68.42,173.22,173.11,82.73233112]
[1747405158316,68.34,173.21,173.11,82.73233112]
[1747405158821,5.7718,173.2,173.16,5.7728]
[1747405159020,68.34,173.21,173.11,82.73233112]
[1747405159218,68.34,173.21,173.11,72.242]
[1747405159415,5.7726,173.18,173.14,5.7737]
[1747405159821,68.34,173.21,173.11,72.242]
[1747405160021,5.7722,173.19,173.15,5.7734]
[1747405160224,5.7722,173.19,173.11,72.242]
[1747405160422,68.34,173.21,173.11,72.242]
[1747405161223,5.7723,173.19,173.11,72.242]
[1747405161716,68.34,173.21,173.11,72.242]
[1747405161917,68.32,173.21,173.18,5.7722]
[1747405162321,68.32,173.21,173.17,5.7726]
[1747405162924,74.0916,173.21,173.17,5.7726]
[1747405163112,68.32,173.21,173.16,5.773]
[1747405163312,5.7726,173.18,173.11,82.73233112]
[1747405163517,68.32,173.21,173.11,68.42]
[1747405163717,68.32,173.21,173.12,5.7743]
[1747405163919,5.7729,173.17,173.11,68.42]
[1747405164220,68.3,173.16,173.11,68.42]
[1747405164419,68.3,173.17,173.11,68.42]
[1747405165415,5.7732,173.16,173.13,5.7738]
[1747405165618,68.3,173.17,173.11,68.42]
[1747405167520,68.3,173.17,173.16,5.773]
[1747405168227,68.3,173.17,173.15,5.7733]
[1747405168422,68.3,173.17,173.11,68.42]
[1747405168928,68.3,173.17,173.16,5.7731]
[1747405170028,136.7,173.17,173.06,1.9799]
[1747405170229,136.7,173.17,173.06,3.8621]
[1747405170931,5.7741,173.13,173.06,3.8621]
[1747405171122,136.7,173.17,173.06,3.8621]
[1747405171429,142.4729,173.17,173.06,14.35243112]
[1747405171931,142.4729,173.17,173.13,5.7738]
[1747405172123,136.7,173.17,173.06,14.35243112]
[1747405172633,142.4729,173.17,173.06,14.35243112]
[1747405173130,5.7731,173.16,173.06,14.35243112]
[1747405173322,136.7,173.17,173.06,14.35243112]
[1747405173524,5.7731,173.16,173.06,14.35243112]
[1747405173927,68.4,173.17,173.06,14.35243112]
[1747405174231,5.7723,173.19,173.07,79.7521]
[1747405174535,73.9723,173.19,173.09,10.49033112]
[1747405174831,73.9723,173.19,173.1,68.4]
[1747405175224,68.2,173.19,173.1,68.4]
[1747405175730,68.4,173.21,173.1,68.4]
[1747405175928,68.18,173.2,173.1,68.4]
[1747405176130,68.18,173.2,173.19,5.7718]
[1747405176329,136.58,173.21,173.1,68.4]
[1747405176630,136.58,173.21,173.18,5.7722]
[1747405176830,1.9794,173.22,173.12,10.49033112]
[1747405177023,68.18,173.22,173.13,3.7471]
[1747405177229,68.18,173.22,173.2,5.7715]
[1747405177429,68.18,173.22,173.13,3.7471]
[1747405177632,5.7729,173.17,173.1,68.4]
[1747405177934,68.18,173.17,173.1,68.4]
[1747405178829,73.9527,173.17,173.1,68.4]
[1747405179241,68.18,173.17,173.1,68.4]
[1747405179939,5.7736,173.15,173.12,5.7742]
[1747405180137,68.18,173.17,173.07,3.8269]
[1747405180437,73.953,173.17,173.14,5.7736]
[1747405180737,68.18,173.17,173.14,5.7736]
[1747405180929,68.18,173.17,173.07,3.8269]
[1747405181638,5.7732,173.16,173.13,5.7738]
[1747405181832,5.7732,173.16,173.07,3.8269]
[1747405182032,68.18,173.17,173.07,3.8269]
[1747405182738,5.7741,173.13,173.1,5.7748]
[1747405182927,5.7741,173.13,173.07,3.8269]
[1747405183237,68.14,173.12,173.06,68.14]
[1747405183737,73.9144,173.12,173.06,68.14]
[1747405184038,68.14,173.12,173.06,68.14]
[1747405185039,68.14,173.12,173.02,3.8041]
[1747405185242,68.14,173.12,172.99,68.16]
[1747405185544,10.49033112,173.11,172.99,68.16]
[1747405185743,68.16,173.1,172.99,68.16]
[1747405186432,5.7763,173.07,173.04,5.777]
[1747405186631,68.12,173.06,172.99,68.16]
[1747405187135,68.12,173.06,173.05,5.7767]
[1747405187332,68.1,173.09,172.99,68.16]
[1747405187944,68.1,173.09,173.07,5.7758]
[1747405188340,68.16,173.1,172.99,68.16]
[1747405188537,68.1,173.1,173.09,5.7754]
[1747405188937,68.1,173.1,173.04,68.16]
[1747405189547,5.7757,173.08,173.05,5.7765]
[1747405190247,5.7754,173.09,173.06,5.7763]
[1747405190446,68.1,173.1,173.01,1.8204]
[1747405191445,73.8753,173.1,173.07,5.776]
[1747405191643,68.1,173.1,173.01,1.8204]
[1747405192555,68.1,173.1,173.09,5.7754]
[1747405192751,68.1,173.1,173.01,1.8204]
[1747405193146,68.06,173.1,173.07,5.7758]
[1747405193552,73.8351,173.1,173.07,5.7758]
[1747405193754,68.06,173.1,173.06,5.7763]
[1747405194146,73.8351,173.1,173.01,1.8204]
[1747405194650,68.06,173.1,173.01,1.8204]
[1747405194954,71.3549,173.14,173.01,1.8204]
[1747405195155,68.06,173.13,173.06,5.7762]
[1747405195349,68.06,173.13,173.0,68.16]
[1747405196252,5.7767,173.06,173.02,5.7775]
[1747405196449,68.04,173.05,173.02,5.7775]
[1747405197052,68.04,173.05,173.03,5.7774]
[1747405197456,68.04,173.05,173.04,5.7771]
[1747405200759,68.04,173.05,173.0,68.16]
[1747405201258,68.04,173.05,173.02,5.7777]
[1747405201758,68.04,173.05,173.0,68.16]
[1747405202757,68.04,173.05,173.04,5.7771]
[1747405202955,68.18,173.08,173.0,68.16]
[1747405203154,68.0,173.09,173.08,5.7757]
[1747405203356,68.18,173.12,173.0,68.16]
[1747405203659,136.18,173.12,173.0,68.16]
[1747405204251,68.0,173.13,173.02,16.76264095]
[1747405204447,68.0,173.13,173.11,5.7745]
[1747405204859,68.0,173.13,173.06,68.18]
[1747405205054,5.7753,173.1,173.06,68.18]
[1747405205255,68.0,173.13,173.02,68.18]
[1747405205956,5.7752,173.1,173.02,68.18]
[1747405206258,68.0,173.13,173.02,68.18]
[1747405206458,5.7756,173.09,173.05,5.7764]
[1747405206757,68.0,173.13,173.02,68.18]
[1747405207254,5.7754,173.09,173.06,5.7762]
[1747405207551,67.96,173.08,173.02,68.18]
[1747405207748,67.96,173.08,172.97,73.6631]
[1747405207950,67.96,173.08,172.98,68.18]
[1747405208154,5.7769,173.05,173.02,5.7775]
[1747405208459,67.96,173.08,172.98,68.18]
[1747405208655,73.7359,173.08,173.04,5.7768]
[1747405209655,5.7762,173.07,173.04,5.7768]
[1747405209864,67.96,173.08,173.03,5.7774]
[1747405210161,67.96,173.08,172.98,68.18]
[1747405211373,5.7763,173.07,173.04,5.7768]
[1747405211755,67.96,173.08,172.98,68.18]
[1747405212363,70.0122,173.1,172.98,68.18]
[1747405212364,68.18,173.1,172.98,68.18]
[1747405212657,67.92,173.09,172.98,68.18]
[1747405214065,5.7758,173.08,173.05,5.7765]
[1747405214464,67.92,173.09,173.05,5.7765]
[1747405214664,5.7762,173.07,172.98,68.18]
[1747405215067,5.7765,173.06,173.03,5.7772]
[1747405215256,5.7765,173.06,172.98,68.18]
[1747405215665,67.92,173.09,172.98,68.18]
[1747405216260,5.7771,173.04,172.98,68.18]
[1747405216963,67.92,173.09,172.98,68.18]
[1747405217366,67.92,173.09,173.02,5.7776]
[1747405217669,67.92,173.09,172.98,68.18]
[1747405217862,67.92,173.09,173.05,5.7766]
[1747405218168,67.92,173.09,172.99,11.5575]
[1747405218467,67.88,173.1,173.07,5.7758]
[1747405219170,67.88,173.1,173.08,5.7756]
[1747405219669,67.88,173.1,173.03,67.94]
[1747405220465,67.88,173.1,173.07,5.7759]
[1747405220668,67.88,173.1,173.03,67.94]
[1747405220861,67.88,173.1,173.05,5.7765]
[1747405221268,5.7759,173.08,173.05,5.7765]
[1747405221469,67.88,173.1,172.99,67.94]
[1747405221966,67.88,173.1,173.02,5.7776]
[1747405222468,67.88,173.1,173.01,5.7779]
[1747405222763,67.88,173.1,172.99,67.94]
[1747405222971,67.88,173.1,173.02,5.7774]
[1747405223369,67.88,173.1,172.99,67.94]
[1747405223562,67.88,173.1,173.0,5.7784]
[1747405223764,1.8072,173.09,173.0,5.7784]
[1747405224064,5.7775,173.03,173.0,5.7784]
[1747405224269,67.82,173.02,172.96,5.7795]
[1747405224668,5.7784,173.0,172.96,5.7795]
[1747405224868,67.82,173.02,172.93,67.94]
[1747405226471,73.5978,173.02,172.93,67.94]
[1747405226672,67.82,173.02,172.93,67.94]
[1747405226972,5.7781,173.01,172.98,5.7788]
[1747405227174,67.82,173.02,172.93,67.94]
[1747405227672,67.82,173.02,172.96,5.7795]
[1747405227868,67.82,173.02,172.93,67.94]
[1747405228271,5.779,172.99,172.93,67.94]
[1747405228475,67.82,173.02,172.93,67.94]
[1747405228776,73.598,173.02,172.99,5.7786]
[1747405228967,67.82,173.02,172.99,5.7786]
[1747405229168,67.94,173.05,172.93,67.94]
[1747405229368,67.8,173.02,172.93,67.94]
[1747405229976,67.8,173.02,173.0,5.7781]
[1747405230177,67.8,173.02,172.93,67.94]
[1747405232178,67.94,173.05,172.93,67.94]
[1747405232376,67.78,173.06,172.94,16.76264095]
[1747405232880,67.78,173.06,173.04,5.7768]
[1747405233075,67.78,173.06,172.98,67.94]
[1747405233275,67.78,173.06,172.99,5.6793]
[1747405234086,67.76,173.07,172.99,5.6793]
[1747405235485,5.7769,173.05,172.99,5.6793]
[1747405235782,67.76,173.07,172.98,67.94]
[1747405235978,67.76,173.07,173.01,5.7779]
[1747405236180,67.76,173.07,172.94,139.5943]
[1747405236380,67.76,173.07,172.94,71.8543]
[1747405236581,5.7779,173.02,172.99,5.7785]
[1747405236781,67.74,173.01,172.94,71.8543]
[1747405238585,67.74,173.01,173.0,5.7784]
[1747405238785,67.74,173.01,172.94,71.8543]
[1747405239883,67.74,173.01,173.0,5.7784]
[1747405240289,67.74,173.01,172.94,71.8543]
[1747405240485,67.74,173.01,172.94,69.8586]
[1747405240686,67.74,173.01,172.92,1.928]
[1747405241386,67.7,173.03,172.92,1.928]
[1747405241589,67.7,173.03,172.93,67.7]
[1747405241788,67.7,173.03,173.02,5.7777]
[1747405241986,67.7,173.05,172.96,67.7]
[1747405242391,5.7779,173.02,172.96,67.7]
[1747405242580,67.7,173.05,172.96,67.7]
[1747405243095,5.7773,173.04,173.01,5.7778]
[1747405243591,67.7,173.05,172.96,67.7]
[1747405243986,67.7,173.05,172.97,3.7998]
[1747405244494,135.38,173.07,172.97,3.7998]
[1747405244693,141.1561,173.07,173.04,5.7768]
[1747405244987,135.38,173.07,172.98,67.68]
[1747405245188,67.7,173.07,172.98,67.68]
[1747405245392,67.7,173.07,173.05,5.7765]
[1747405245697,67.7,173.07,172.99,1.9699]
[1747405246489,67.66,173.08,172.99,1.9699]
[1747405246691,67.66,173.08,173.06,5.7764]
[1747405246887,67.66,173.08,172.99,1.9699]
[1747405247096,67.66,173.1,172.99,1.9699]
[1747405247291,73.4354,173.09,173.06,5.7761]
[1747405247992,5.7758,173.08,173.06,5.7761]
[1747405248193,5.7758,173.08,173.01,67.7]
[1747405248487,67.66,173.09,173.01,67.7]
[1747405248688,5.7758,173.08,173.03,5.7773]
[1747405248891,5.7758,173.08,173.01,67.7]
[1747405249392,5.7758,173.08,173.05,5.7765]
[1747405249690,5.7758,173.08,173.01,67.7]
[1747405249992,67.64,173.08,173.01,67.7]
[1747405250695,67.64,173.08,173.07,5.776]